{"text_format":"3","workbook":"xlsx","n_sheets":1,"sheets":["End User"],"not_rendered":{"defined_names":1},"read":"whole","date_system":"1900"}

{"sheet":"End User","index":0,"n_rows":152,"n_cols":25,"rows_kept":152,"merged":[[151,0,151,6]]}
["Region","SiteGroup","SARS Site","Site Details","Classification","SLA Coverage Period","SLA Metal","Barcode Printer","Braille Printer","Desktop","Dot Matrix Printer","Inkjet Printer","Label Printer","Laser Printer","LCD Monitor","LED Monitor","Line Matrix Printer","MFP RT3 Printer","Personal MFDs","Laptop","Plasma Monitor","Plotter","Receipt Printer","Scanner","Tablet"]
["Eastern Cape","Eastern Cape Region","Airport - Gqeberha International - Cargo Building","Airport - Gqeberha International - Cargo Building","Metro","Standard","Gold",1]
["Eastern Cape","Eastern Cape Region","Airport - Gqeberha International - Terminal Building","Airport - Gqeberha International - Terminal Building","Metro","Basic","Silver",{"$nulls":7},4,{"$nulls":8},4]
["Eastern Cape","Eastern Cape Region","Customs & Revenue - East London - Waverly Building","Customs & Revenue - East London - Waverly Building","Metro","Extended","Gold",15,null,25,{"$nulls":3},8,249,7,1,15,2,192,8,null,null,10,19]
["Eastern Cape","Eastern Cape Region","Customs & Revenue - Gqeberha - Sanlam Centre","Customs & Revenue - Gqeberha - Sanlam Centre","Metro","Extended","Gold",4,null,44,null,null,1,2,174,56,null,18,null,177,14,null,null,47,16]
["Eastern Cape","Eastern Cape Region","Customs & Revenue - Gquberha Forrest Hill K9 Unit","Customs & Revenue - Gquberha Forrest Hill K9 Unit","Town","Standard","Silver"]
["Eastern Cape","Eastern Cape Region","Revenue - Kriega","Revenue - Kriega","Town","Basic","Gold",null,null,3,{"$nulls":4},9,null,null,2,null,20,{"$nulls":3},1,2]
["Eastern Cape","Eastern Cape Region","Revenue - Mthatha","Revenue - Mthatha","Town","Standard","Gold",4,null,9,null,1,null,2,37,41,null,5,null,43,{"$nulls":3},19,2]
["Eastern Cape","Eastern Cape Region","Revenue - St Marys Terrace","Revenue - St Marys Terrace","Metro","Standard","Gold",8,null,9,null,4,null,2,235,6,null,13,null,182,{"$nulls":3},14,7]
["Eastern Cape","Eastern Cape Region","State Warehouse - Gqeberha","State Warehouse - Gqeberha","Metro","Standard","Silver",1,{"$nulls":7},1,null,1,null,2]
["Eastern Cape","Eastern Cape Region","State Warehouse - Gqeberha Harrower Road","State Warehouse - Gqeberha Harrower Road","Metro","Standard","Silver",null,null,8,{"$nulls":4},14,{"$nulls":5},1,null,null,6,1]
[{"$nulls":7},{"$f":"SUM(H2:H11)","v":33},null,{"$f":"SUM(J2:J11)","v":98},null,{"$f":"SUM(L2:L11)","v":5},1,14,722,111,1,54,2,616,23,null,null,{"$f":"SUM(X2:X11)","v":101},{"$f":"SUM(Y2:Y11)","v":47}]
[]
["Free State","Free State Region","Airport - Bram Fischer International","Airport - Bram Fischer International","Basic","Metro","Gold",null,null,1,{"$nulls":4},1,1,{"$nulls":7},1]
["Free State","Free State Region","Border - Caledonspoort","Border - Caledonspoort","Rural","Standard","Silver",null,null,6,{"$nulls":4},12,2,null,2,null,2,{"$nulls":3},5,8]
["Free State","Free State Region","Border - Ficksburg Bridge","Border - Ficksburg Bridge","Rural","Standard","Silver",null,null,8,{"$nulls":4},23,1,null,4,null,6,1,null,null,6,11]
["Free State","Free State Region","Border - Maseru Bridge","Border - Maseru Bridge","Rural","Standard","Silver",null,null,9,null,1,null,null,32,4,null,3,null,6,{"$nulls":4},20]
["Free State","Free State Region","Border - Van Rooyenshek","Border - Van Rooyenshek","Rural","Standard","Silver",null,null,7,{"$nulls":4},9,4,null,2,1,2,{"$nulls":3},3,2]
["Free State","Free State Region","Customs - Ladybrand Dog Unit","Customs - Ladybrand Dog Unit","Town","Basic","Silver",null,null,2,{"$nulls":4},11,1,null,1,null,6]
["Free State","Free State Region","Customs & Revenue - Bloemfontein Central Gov","Customs & Revenue - Bloemfontein Central Gov","Metro","Standard","Gold",19,null,55,null,2,null,6,163,67,null,7,2,130,12,null,null,15,2]
["Free State","Free State Region","Revenue - Bethlehem","Revenue - Bethlehem","Town","Standard","Gold",2,null,16,{"$nulls":4},23,1,null,5,null,5,3,null,null,6,2]
["Free State","Free State Region","Revenue - Bloemfontein - Zastron","Revenue - Bloemfontein - Zastron","Metro","Standard","Gold",3,null,42,null,5,null,1,133,59,null,14,null,124,7,null,null,60,14]
["Free State","Free State Region","Revenue - Kroonstad","Revenue - Kroonstad","Town","Standard","Gold",5,null,20,{"$nulls":3},2,41,3,null,5,1,23,5,null,null,12,2]
["Free State","Free State Region","Revenue - Welkom","Revenue - Welkom","Town","Standard","Gold",12,null,20,null,3,null,14,70,4,null,8,null,36,4,null,null,12,2]
["Free State","Free State Region","State Warehouse - Ladybrand","State Warehouse - Ladybrand","Town","Standard","Bronze",1,null,1,{"$nulls":5},1,{"$nulls":3},1]
[{"$nulls":7},{"$f":"SUM(H14:H25)","v":42},null,{"$f":"SUM(J14:J25)","v":187},null,{"$f":"SUM(L14:L25)","v":11},null,{"$f":"SUM(N14:N25)","v":23},{"$f":"SUM(O14:O25)","v":518},{"$f":"SUM(P14:P25)","v":148},null,{"$f":"SUM(R14:R25)","v":51},{"$f":"SUM(S14:S25)","v":4},{"$f":"SUM(T14:T25)","v":341},{"$f":"SUM(U14:U25)","v":32},null,null,{"$f":"SUM(X14:X25)","v":120},{"$f":"SUM(Y14:Y25)","v":63}]
[]
["Gauteng","Gauteng Central Region","Airport - Lanseria","Airport - Lanseria","Metro","Standard","Gold",null,null,6,{"$nulls":4},10,2,null,3,null,14,{"$nulls":3},1,4]
["Gauteng","Gauteng Central Region","Airport - OR Thambo International - Arrivals","Airport - OR Thambo International - Arrivals","Metro","Premium","Platinum",null,null,17,{"$nulls":4},29,1,null,5,2,7,{"$nulls":3},9,23]
["Gauteng","Gauteng Central Region","Airport - OR Thambo International - Mail Centre","Airport - OR Thambo International - Mail Centre","Metro","Basic","Gold",{"$nulls":7},1,null,null,1,null,7]
["Gauteng","Gauteng Central Region","Airport - OR Thambo International - New Agents Building","Airport - OR Thambo International - New Agents Building","Metro","Premium","Platinum",null,null,5,{"$nulls":3},7,64,19,null,3,1,34,2,null,null,4,3]
["Gauteng","Gauteng Central Region","Airport - OR Thambo International - Terminal Building","Airport - OR Thambo International - Terminal Building","Metro","Premium","Platinum",null,null,27,{"$nulls":3},3,52,9,null,6,3,29,{"$nulls":3},16,8]
["Gauteng","Gauteng Central Region","Customs - Johannesburg City Deep Depot","Customs - Johannesburg City Deep Depot","Metro","Standard","Gold",null,null,1,{"$nulls":4},2]
["Gauteng","Gauteng Central Region","Customs - Kempton Park Dog Unit","Customs - Kempton Park Dog Unit","Metro","Basic","Silver",null,null,7,{"$nulls":4},11,null,null,2,null,6,1,{"$nulls":3},26]
["Gauteng","Gauteng Central Region","Revenue - Alberton - Alberton Campus","Revenue - Alberton - Alberton Campus","Metro","Extended","Platinum",16,1,96,null,4,null,4,1318,185,null,33,1,1374,53,null,null,23,4]
["Gauteng","Gauteng Central Region","Revenue - Alberton - City Mall","Revenue - Alberton City Mall","Metro","Standard","Gold",4,null,4,{"$nulls":4},10,12,null,2,null,56,8,null,null,78,8]
["Gauteng","Gauteng Central Region","Revenue - Benoni - Lakeside Mall","Revenue - Benoni - Lakeside Mall","Town","Standard","Gold",1,null,3,{"$nulls":4},3,2,null,2,null,23,{"$nulls":4},6]
["Gauteng","Gauteng Central Region","Revenue - Boksburg","Revenue - Boksburg","Metro","Standard","Gold",5,null,7,{"$nulls":4},28,7,null,4,null,30,1,{"$nulls":3},4]
["Gauteng","Gauteng Central Region","Revenue - Edenvale","Revenue - Edenvale","Metro","Standard","Gold",4,null,15,{"$nulls":4},89,3,null,3,null,56,7,null,null,1,5]
["Gauteng","Gauteng Central Region","Revenue - Joburg - Rissik Street","Revenue - Joburg - Rissik Street","Metro","Standard","Gold",29,null,33,null,1,null,9,275,16,null,12,1,122,9,null,null,1,5]
["Gauteng","Gauteng Central Region","Revenue - Randburg","Revenue - Randburg","Metro","Standard","Gold",1,null,25,null,2,null,2,170,12,null,20,1,138,5,{"$nulls":3},3]
["Gauteng","Gauteng Central Region","Revenue - Soweto Bara","Revenue - Soweto Bara","Town","Standard","Gold",2,null,10,{"$nulls":4},22,7,null,5,null,29,{"$nulls":4},3]
["Gauteng","Gauteng Central Region","Revenue - Vereeniging","Revenue - Vereeniging","Town","Standard","Gold",5,null,42,{"$nulls":4},87,2,null,3,null,24,2,{"$nulls":3},5]
["Gauteng","Gauteng Central Region","Revenue - Woodmead - Large Business Centre","Revenue - Woodmead - Large Business Centre","Metro","Standard","Platinum",null,null,10,null,1,null,null,144,19,null,7,null,312,8,{"$nulls":3},1]
["Gauteng","Gauteng Central Region","State Warehouse - Johannesburg","State Warehouse - Johannesburg","Metro","Basic","Silver",1,null,5,{"$nulls":4},13,1,{"$nulls":3},5,1]
["Gauteng","Gauteng Central Region","State Warehouse - ORTIA Customs","State Warehouse - ORTIA Customs","Metro","Premium","Platinum",1,null,8,{"$nulls":3},1,8,3,null,4,null,3]
["Gauteng","Gauteng North","Admin - 271 Veale Street","Admin - 271 Veale Street","Metro","Extended","Gold",null,null,12,null,null,1,3,166,22,null,9,2,200,17,null,null,1,2]
["Gauteng","Gauteng North","Admin - Pretoria - Office of Tax Ombuds","Admin - Pretoria - Office of Tax Ombuds","Metro","Basic","Gold",null,null,7,{"$nulls":4},26,12,null,2,null,36,2]
["Gauteng","Gauteng North","Admin - SITA Centurion (IT DR Site)","Admin - SITA Centurion (IT DR Site)","Metro","Extended","Silver",{"$nulls":13},1]
["Gauteng","Gauteng North","Customs - Pretoria - Customs House","Customs - Pretoria - Customs House","Metro","Standard","Silver",1,null,3,{"$nulls":3},1,33,null,null,3,1,26,{"$nulls":3},1]
["Gauteng","Gauteng North","Revenue - Doringkloof Contact Centre","Revenue - Doringkloof Contact Centre","Metro","Extended","Gold",50,null,101,{"$nulls":3},1,803,117,null,26,null,741,16,null,null,6,21]
["Gauteng","Gauteng North","Revenue - Pretoria - Ashlea Gardens","Revenue - Pretoria - Ashlea Gardens","Metro","Standard","Gold",1,null,32,{"$nulls":4},108,9,null,9,1,71,3,{"$nulls":3},4]
["Gauteng","Gauteng North","Revenue - Pretoria - Main Receiver Building","Revenue - Pretoria - Main Receiver Building","Metro","Standard","Gold",12,null,46,{"$nulls":3},8,256,23,1,22,null,199,8,null,null,7,25]
["Gauteng","Gauteng North","State Warehouse - Iscor Warehouse","State Warehouse - Iscor Warehouse","Metro","Basic","Silver",null,null,1,null,1,null,null,3,null,null,1,1]
["Gauteng","Gauteng North","State Warehouse - Silverton","State Warehouse - Silverton","Metro","Basic","Silver",2,null,1,{"$nulls":4},1,null,null,2,null,1,3,null,null,1]
["Gauteng","Gauteng South Region","Airport – Fireblade Aviation","Airport – Fireblade Aviation","Metro","Standard","Gold",null,null,2,{"$nulls":4},3,{"$nulls":8},1]
["Gauteng","Gauteng South Region","Revenue - Krugersdorp","Revenue - Krugersdorp","Metro","Standard","Gold",4,null,15,{"$nulls":4},53,10,null,3,null,69,3,null,1,1,6]
["Gauteng","Gauteng South Region","Revenue - Nigel","Revenue - Nigel","Town","Standard","Gold",2,null,20,{"$nulls":4},32,1,1,2,null,5,2,null,2,1,2]
["Gauteng","Gauteng South Region","Revenue - Randfontein","Revenue - Randfontein","Town","Standard","Gold",null,null,2,{"$nulls":4},13,null,null,2,null,9,{"$nulls":4},4]
["Gauteng","Gauteng South Region","Revenue - Roodepoort","Revenue - Roodepoort","Town","Standard","Gold",3,null,15,{"$nulls":3},2,62,6,null,8,1,39,1,{"$nulls":3},4]
["Gauteng","Gauteng South Region","Revenue - Springs","Revenue - Springs","Town","Standard","Gold",2,null,9,null,1,null,1,52,null,null,3,null,29,3,{"$nulls":3},3]
["Gauteng","Head Office Campus","Admin - Brooklyn Bridge - Hilton House","Admin - Brooklyn Bridge - Hilton House","Metro","Extended","Gold",null,null,11,{"$nulls":3},1,101,26,null,10,1,97,{"$nulls":3},1,4]
["Gauteng","Head Office Campus","Admin - Brooklyn Bridge - Linton House","Admin - Brooklyn Bridge - Linton House","Metro","Standard","Gold",{"$nulls":4},3,1,5,133,25,{"$nulls":3},13,2,null,null,1]
["Gauteng","Head Office Campus","Admin - Khanyisa","Admin - Khanyisa","Metro","Standard","Gold",null,null,7,{"$nulls":4},160,14,null,11,null,116,{"$nulls":3},2,4]
["Gauteng","Head Office Campus","Admin - Khanyisa - VDU","Admin - Khanyisa - VDU","Metro","Standard","Gold",{"$nulls":7},18,6,null,1,null,16]
["Gauteng","Head Office Campus","Admin - Lehae la SARS","Admin - Lehae la SARS","Metro","Premium","Gold",7,null,155,null,21,7,16,1244,456,null,38,3,2200,35,1,null,32,74]
[{"$nulls":7},{"$f":"SUM(H28:H66)","v":153},{"$f":"SUM(I28:I66)","v":1},{"$f":"SUM(J28:J66)","v":760},null,{"$f":"SUM(L28:L66)","v":34},9,64,5603,1027,2,267,19,6136,193,1,3,188,261]
[]
["Kwazulu Natal","Kwazulu Natal Region","Airport - King Shaka Airport","Airport - King Shaka Airport","Metro","Extended","Gold",1,null,18,{"$nulls":3},7,22,16,null,3,1,10,{"$nulls":3},16]
["Kwazulu Natal","Kwazulu Natal Region","Border - Golela","Border - Golela","Rural","Standard","Silver",null,null,16,{"$nulls":3},1,27,7,null,4,null,6,{"$nulls":3},6,8]
["Kwazulu Natal","Kwazulu Natal Region","Border - Qachas Nek","Border - Qachas Nek","Rural","Standard","Silver",null,null,4,{"$nulls":4},9,3,null,2,null,1,{"$nulls":3},4,7]
["Kwazulu Natal","Kwazulu Natal Region","Customs - Durban - Cargo Scanner","Customs - Durban - Cargo Scanner","Metro","Basic","Silver",null,null,4,{"$nulls":4},7,4,null,1,null,1,1]
["Kwazulu Natal","Kwazulu Natal Region","Customs - Durban - Customs House","Customs - Durban - Customs House","Metro","Standard","Silver",3,null,16,{"$nulls":3},4,61,25,null,2,3,50,8,null,null,3,15]
["Kwazulu Natal","Kwazulu Natal Region","Customs - Durban - Durmail","Customs - Durban - Durmail","Metro","Standard","Silver",null,null,2,{"$nulls":4},7,null,null,1,null,2]
["Kwazulu Natal","Kwazulu Natal Region","Customs - Kosi Bay","Customs - Kosi Bay","Rural","Standard","Silver",null,null,5,{"$nulls":4},5,null,null,2,null,2]
["Kwazulu Natal","Kwazulu Natal Region","Customs - Richards Bay","Customs - Richards Bay","Town","Standard","Silver",1,null,1,{"$nulls":4},10,19,null,2,1,19,1,null,null,1,5]
["Kwazulu Natal","Kwazulu Natal Region","Customs & Revenue - Durban - Albany House","Customs & Revenue - Durban - Albany House","Metro","Standard","Gold",4,null,23,null,11,null,31,434,22,1,21,2,515,3,null,null,17]
["Kwazulu Natal","Kwazulu Natal Region","Harbour - MSC Cruise Liner Terminal","Harbour - MSC Cruise Liner Terminal","Metro","Extended","Silver",{"$nulls":10},1]
["Kwazulu Natal","Kwazulu Natal Region","Revenue - Newcastle","Revenue - Newcastle","Town","Basic","Gold",null,null,8,{"$nulls":4},37,1,null,4,null,29,1,null,null,12,4]
["Kwazulu Natal","Kwazulu Natal Region","Revenue - Pietermaritzburg","Revenue - Pietermaritzburg","Town","Standard","Gold",4,null,12,null,2,null,null,95,3,null,9,1,92,9,null,null,48,6]
["Kwazulu Natal","Kwazulu Natal Region","Revenue - Pinetown","Revenue - Pinetown","Town","Basic","Gold",null,null,8,null,null,1,1,12,1,null,4,null,32,4,null,null,2,5]
["Kwazulu Natal","Kwazulu Natal Region","Revenue - Port Shepstone","Revenue - Port Shepstone","Town","Basic","Gold",1,null,13,null,null,1,null,28,1,null,4,null,15,4,null,null,24,4]
["Kwazulu Natal","Kwazulu Natal Region","Revenue - Richards Bay - Bayside Mall","Revenue - Richards Bay - Bayside Mall","Town","Basic","Gold",1,null,24,{"$nulls":3},1,40,4,null,4,null,5,3,null,null,33,3]
["Kwazulu Natal","Kwazulu Natal Region","Revenue - Trescon House","Revenue - Trescon House","Metro","Basic","Gold",43,null,193,null,5,null,12,674,79,null,28,null,487,23,null,null,28,8]
["Kwazulu Natal","Kwazulu Natal Region","Revenue - Umhlanga","Revenue - Umhlanga","Metro","Standard","Gold",1,null,16,{"$nulls":4},44,7,null,13,null,55,11,null,null,41,23]
["Kwazulu Natal","Kwazulu Natal Region","State Warehouse - Durban New Pier","State Warehouse - Durban New Pier","Metro","Basic","Silver",{"$nulls":10},1,null,null,1]
["Limpopo","Limpopo Region","Airport - Polokwane Gateway","Airport - Polokwane Gateway","Town","Standard","Silver",null,null,6,{"$nulls":4},10,3,null,2,null,3,{"$nulls":4},1]
["Limpopo","Limpopo Region","Border - Beit Bridge","Border - Beit Bridge","Rural","Premium","Gold",4,null,42,{"$nulls":3},1,107,25,null,12,2,49,2,null,null,22,31]
["Limpopo","Limpopo Region","Border - Groblers Bridge","Border - Groblers Bridge","Rural","Standard","Silver",2,null,8,{"$nulls":4},40,3,null,4,null,13,1,null,null,4,19]
["Limpopo","Limpopo Region","Revenue - Giyani","Revenue - Giyani","Rural","Standard","Gold",2,null,16,null,1,null,null,22,1,null,4,null,12,2,{"$nulls":3},5]
["Limpopo","Limpopo Region","Revenue - Lebowakgomo","Revenue - Lebowakgomo","Rural","Standard","Gold",2,null,26,null,3,null,null,51,3,null,5,null,9]
["Limpopo","Limpopo Region","Revenue - Polokwane","Revenue - Polokwane","Town","Standard","Gold",4,null,42,null,6,null,1,79,43,null,16,1,140,16,null,1,1,17]
["Limpopo","Limpopo Region","Revenue - Thohoyandou","Revenue - Thohoyandou","Rural","Standard","Gold",6,null,14,null,1,null,null,39,3,null,7,null,21,2,{"$nulls":3},2]
["Limpopo","Limpopo Region","State Warehouse - Musina","State Warehouse - Musina","Town","Standard","Silver"]
[{"$nulls":7},{"$f":"SUM(H69:H94)","v":79},null,{"$f":"SUM(J69:J94)","v":517},null,{"$f":"SUM(L69:L94)","v":29},2,59,1860,273,1,156,11,1568,92,null,{"$f":"SUM(W69:W94)","v":1},{"$f":"SUM(X69:X94)","v":262},{"$f":"SUM(Y69:Y94)","v":163}]
[]
["Mpumalanga","Mpumalanga Region","Airport - Kruger International","Airport - Kruger International","Town","Standard","Silver",null,null,4,{"$nulls":4},9,1,null,4,1,4,{"$nulls":3},1]
["Mpumalanga","Mpumalanga Region","Border - Jeppes Reef","Border - Jeppes Reef","Rural","Standard","Silver",null,null,9,{"$nulls":3},3,11,1,null,6,null,2,{"$nulls":3},7,6]
["Mpumalanga","Mpumalanga Region","Border - Lebombo","Border - Lebombo","Rural","Premium","Gold",null,null,23,{"$nulls":3},3,52,null,null,14,1,23,{"$nulls":3},6,22]
["Mpumalanga","Mpumalanga Region","Border - Lebombo Commercials","Border - Lebombo Commercials","Rural","Standard","Silver",null,null,5,{"$nulls":4},27,{"$nulls":3},1,5,{"$nulls":3},19]
["Mpumalanga","Mpumalanga Region","Border - Mahamba","Border - Mahamba","Rural","Standard","Silver",null,null,11,null,1,null,1,16,2,null,5,null,2,{"$nulls":3},4,2]
["Mpumalanga","Mpumalanga Region","Border - Mananga","Border - Mananga","Rural","Standard","Silver",null,null,10,{"$nulls":3},1,17,null,null,6,null,2,{"$nulls":3},4,8]
["Mpumalanga","Mpumalanga Region","Border - Nerston","Border - Nerston","Rural","Standard","Silver",null,null,3,{"$nulls":4},11,2,null,4,1,5,{"$nulls":3},3,8]
["Mpumalanga","Mpumalanga Region","Border - Oshoek","Border - Oshoek","Rural","Premium","Silver",1,null,8,{"$nulls":3},2,23,2,null,9,1,10,{"$nulls":3},1,1]
["Mpumalanga","Mpumalanga Region","Customs - Lebombo Dog Unit","Customs - Lebombo Dog Unit","Rural","Premium","Gold",null,null,1,{"$nulls":4},7,{"$nulls":4},1]
["Mpumalanga","Mpumalanga Region","Revenue - eMalahleni","Revenue - eMalahleni","Town","Standard","Gold",4,null,16,{"$nulls":4},74,17,null,7,null,57,10,null,null,11,5]
["Mpumalanga","Mpumalanga Region","Revenue - Mbombela","Revenue - Mbombela","Town","Standard","Gold",7,null,16,null,1,null,null,73,15,null,10,null,94,null,null,2,8,13]
["Mpumalanga","Mpumalanga Region","Revenue - Standerton","Revenue - Standerton","Town","Standard","Gold",5,null,11,{"$nulls":4},32,1,null,7,null,31,3,null,null,4,2]
[{"$nulls":7},{"$f":"SUM(H97:H108)","v":17},null,{"$f":"SUM(J97:J108)","v":117},null,{"$f":"SUM(L97:L108)","v":2},null,{"$f":"SUM(N97:N108)","v":10},{"$f":"SUM(O97:O108)","v":352},{"$f":"SUM(P97:P108)","v":41},null,{"$f":"SUM(R97:R108)","v":72},{"$f":"SUM(S97:S108)","v":5},{"$f":"SUM(T97:T108)","v":236},{"$f":"SUM(U97:U108)","v":13},null,{"$f":"SUM(W97:W108)","v":2},{"$f":"SUM(X97:X108)","v":68},{"$f":"SUM(Y97:Y108)","v":67}]
[]
["North West","North West Region","Airport - Pilansberg","Airport - Pilansberg","Rural","Standard","Silver",{"$nulls":7},2,4,null,1,1,3,{"$nulls":4},3]
["North West","North West Region","Border - Kopfontein Gate","Border - Kopfontein Gate","Rural","Standard","Silver",null,null,10,{"$nulls":4},22,8,null,7,1,6,{"$nulls":3},6,16]
["North West","North West Region","Border - Ramatlabama","Border - Ramatlabama","Rural","Standard","Silver",null,null,8,{"$nulls":4},14,3,null,4,1,7,{"$nulls":3},2,10]
["North West","North West Region","Border - Skilpadshek","Border - Skilpadshek","Rural","Standard","Silver",null,null,11,{"$nulls":4},26,12,null,7,null,15,{"$nulls":3},4,9]
["North West","North West Region","Revenue - Klerksdorp","Revenue - Klerksdorp","Town","Premium","Platinum",16,2,26,{"$nulls":4},71,7,null,7,null,35,2,null,null,1,2]
["North West","North West Region","Revenue - Mmabatho","Revenue - Mmabatho","Rural","Standard","Gold",7,null,20,null,1,null,null,79,3,null,6,null,55,3,null,1,6,2]
["North West","North West Region","Revenue - Rustenburg","Revenue - Rustenburg","Town","Standard","Gold",4,null,30,null,4,null,null,80,13,null,10,null,62,6,null,null,3,18]
[{"$nulls":7},{"$f":"SUM(H111:H117)","v":27},{"$f":"SUM(I111:I117)","v":2},{"$f":"SUM(J111:J117)","v":105},null,{"$f":"SUM(L111:L117)","v":5},null,null,{"$f":"SUM(O111:O117)","v":294},{"$f":"SUM(P111:P117)","v":50},null,{"$f":"SUM(R111:R117)","v":42},{"$f":"SUM(S111:S117)","v":3},{"$f":"SUM(T111:T117)","v":183},{"$f":"SUM(U111:U117)","v":11},null,{"$f":"SUM(W111:W117)","v":1},{"$f":"SUM(X111:X117)","v":22},{"$f":"SUM(Y111:Y117)","v":60}]
[]
["Northern Cape","Northern Cape Region","Airport - Upington","Airport - Upington","Town","Standard","Gold",null,null,4,{"$nulls":4},4,1,null,2]
["Northern Cape","Northern Cape Region","Border - Alexander Bay","Border - Alexander Bay","Rural","Extended","Gold",null,null,1,{"$nulls":3},1,3,null,null,2]
["Northern Cape","Northern Cape Region","Border - Nakop","Border - Nakop","Rural","Premium","Gold",null,null,7,{"$nulls":4},19,4,null,4,null,6,{"$nulls":3},10,9]
["Northern Cape","Northern Cape Region","Border - Vioolsdrift","Border - Vioolsdrift","Rural","Extended","Gold",null,null,8,{"$nulls":4},20,2,null,4,null,3,{"$nulls":3},9,15]
["Northern Cape","Northern Cape Region","Customs & Revenue - Upington","Customs & Revenue - Upington","Town","Standard","Gold",3,null,14,{"$nulls":4},46,16,null,3,null,30,2,null,null,5,18]
["Northern Cape","Northern Cape Region","Revenue - Kimberley - Bean and Crossman","Revenue - Kimberley - Bean and Crossman","Town","Standard","Gold",5,null,31,null,2,null,null,92,3,null,11,1,42,7,null,null,34,7]
["Northern Cape","Northern Cape Region","State Warehouse - Upington - Station","State Warehouse - Upington - Station","Town","Standard","Silver",1,null,1,{"$nulls":4},9,3,null,1,null,4,{"$nulls":3},1]
[{"$nulls":7},{"$f":"SUM(H120:H126)","v":9},null,{"$f":"SUM(J120:J126)","v":66},null,{"$f":"SUM(L120:L126)","v":2},null,{"$f":"SUM(N120:N126)","v":1},{"$f":"SUM(O120:O126)","v":193},{"$f":"SUM(P120:P126)","v":29},null,{"$f":"SUM(R120:R126)","v":27},{"$f":"SUM(S120:S126)","v":1},{"$f":"SUM(T120:T126)","v":85},{"$f":"SUM(U120:U126)","v":9},null,null,{"$f":"SUM(X120:X126)","v":59},{"$f":"SUM(Y120:Y126)","v":49}]
[]
["Western Cape","Western Cape Region","Admin - Parliament Building (120 Plein Street)","Admin - Parliament Building (120 Plein Street)","Metro","Premium","Platinum",{"$nulls":7},2,null,null,2,null,null,2,null,null,1]
["Western Cape","Western Cape Region","Airport - Cape Town International - Airfreight","Airport - Cape Town International - Airfreight","Metro","Premium","Platinum",2,null,6,{"$nulls":3},1,20,18,null,1,null,17,{"$nulls":3},1,15]
["Western Cape","Western Cape Region","Airport - Cape Town International - Arrivals","Airport - Cape Town International - Arrivals","Metro","Premium","Platinum",null,null,18,{"$nulls":3},1,25,null,null,2,1,7,{"$nulls":3},22]
["Western Cape","Western Cape Region","Airport - Cape Town International - Customs","Airport - Cape Town International - Customs","Metro","Premium","Platinum",{"$nulls":10},3,null,1]
["Western Cape","Western Cape Region","Customs - Cape Town - Cargo Scanner","Customs - Cape Town - Cargo Scanner","Metro","Extended","Gold",null,null,4,{"$nulls":4},2,4,null,2,null,6]
["Western Cape","Western Cape Region","Customs - Mossel Bay","Customs - Mossel Bay","Town","Standard","Silver",2,null,1,{"$nulls":4},2,2,null,1,null,2]
["Western Cape","Western Cape Region","Customs - Oudtshoorn","Customs - Oudtshoorn","Town","Standard","Silver",1,null,2,{"$nulls":4},4,3,null,1,null,5]
["Western Cape","Western Cape Region","Customs - Robertson","Customs - Robertson","Town","Standard","Silver",null,null,1,{"$nulls":4},6,2,null,1,null,5,{"$nulls":3},1]
["Western Cape","Western Cape Region","Customs - Stellenbosch","Customs - Stellenbosch","Town","Standard","Gold",3,null,null,2,{"$nulls":3},12,3,null,1,null,13,{"$nulls":3},1]
["Western Cape","Western Cape Region","Harbour - Cape Town - Cowrie Place","Harbour - Cape Town - Cowrie Place","Metro","Extended","Gold",null,null,5,{"$nulls":4},16,null,null,3,null,16]
["Western Cape","Western Cape Region","Harbour - Saldanha Bay","Harbour - Saldanha Bay","Town","Extended","Silver",{"$nulls":7},4,null,null,1,null,1]
["Western Cape","Western Cape Region","Revenue - Beaufort West","Revenue - Beaufort West","Town","Standard","Gold",3,null,12,{"$nulls":4},19,1,null,2,null,1,1,null,1,3,2]
["Western Cape","Western Cape Region","Revenue - Bellville","Revenue - Bellville","Metro","Basic","Gold",52,null,102,{"$nulls":3},3,656,146,null,24,null,521,24,null,null,17,17]
["Western Cape","Western Cape Region","Revenue - Cape Mail","Revenue - Cape Mail","Metro","Standard","Gold",{"$nulls":7},11,null,null,1,null,5]
["Western Cape","Western Cape Region","Revenue - Cape Town - Lower Long Street","Revenue - Cape Town - Lower Long Street","Metro","Standard","Gold",6,null,37,{"$nulls":4},103,8,null,10,null,31,1,null,null,9,4]
["Western Cape","Western Cape Region","Revenue - Cape Town - Plein Street","Revenue - Cape Town - Plein Street","Metro","Premium","Platinum",1,null,1,{"$nulls":3},1,11,2,null,2,null,9,{"$nulls":3},1]
["Western Cape","Western Cape Region","Revenue - Cape Town - Project 166","Revenue - Cape Town - Project 166","Metro","Premium","Platinum",12,null,48,null,3,1,9,521,60,null,28,5,466,3,1,null,5,37]
["Western Cape","Western Cape Region","Revenue - George Eden Park","Revenue - George Eden Park","Town","Basic","Gold",5,null,23,{"$nulls":3},1,59,19,null,9,null,50,2,null,null,48,6]
["Western Cape","Western Cape Region","Revenue - Mitchells Plain","Revenue - Mitchells Plain","Metro","Standard","Gold",2,null,24,{"$nulls":4},45,1,null,5,null,11,2,{"$nulls":3},3]
["Western Cape","Western Cape Region","Revenue - Paarl","Revenue - Paarl","Town","Standard","Gold",4,null,19,null,1,null,null,52,2,null,4,null,26,2,null,null,3,2]
["Western Cape","Western Cape Region","Revenue - Worcester","Revenue - Worcester","Town","Standard","Gold",3,null,24,{"$nulls":3},2,56,8,null,6,null,32,4,null,null,1,4]
["Western Cape","Western Cape Region","State Warehouse - Cape Town","State Warehouse - Cape Town","Metro","Standard","Silver",2,null,2,{"$nulls":4},4,5,null,1,null,3]
[{"$nulls":7},{"$f":"SUM(H129:H150)","v":98},null,{"$f":"SUM(J129:J150)","v":329},2,4,1,18,1630,284,null,{"$f":"SUM(R129:R150)","v":110},6,1228,41,1,1,113,90]
["GRAND TOTALS",{"$nulls":6},{"$f":"+H151+H127+H118+H109+H95+H67+H26+H12","v":458},{"$f":"+I151+I127+I118+I109+I95+I67+I26+I12","v":3},2179,2,92,13,189,11172,1963,4,779,51,10393,414,2,8,933,800]